Cogmind - Beta 11.1 @@@ ROGUE MODE // 2022.06.24 @ 19:11:32 Player: Neo Result: Destroyed by G-34 Mercenary with Small Laser Performance ------------- Evolutions (1) 500 Regions Visited (2) 400 Robots Destroyed (34) 170 Value Destroyed (696) 696 Prototype IDs (0) 0 Alien Tech Used (0) 0 Bonus (0) 0 TOTAL SCORE: 1766 Bonus ------- None Cogmind --------- Core Integrity 0/400 Matter 230/300 Energy 100/100 System Corruption 0% Temperature Cool (6) Movement Core (700) Ox13 Location -9/Materials Parts ------- > --- POWER (1) -------- (None) > --- PROPULSION (3) --- (None) > --- UTILITY (2) ------ High-capacity Storage Unit > --- WEAPON (3) ------- (None) > --- INVENTORY (20) --- Ion Engine Improved Heat Sink Large Storage Unit Small Matter Pod (50) Large Matter Pod (150) Visual Processing Unit Seismic Detector Small Laser Spread Laser Spread Laser Shotgun Hammer Peak State ------------ > --- POWER ------------ Light Ion Engine > --- PROPULSION ------- Hover Unit Hover Unit > --- UTILITY ---------- Heat Sink Large Storage Unit > --- WEAPON ----------- EM Pulse Gun Particle Gun > --- INVENTORY -------- Ion Engine Hover Unit Large Storage Unit Small Matter Pod Large Matter Pod Visual Processing Unit Seismic Detector EM Pulse Gun Small Laser Hammer [Rating: 9] Favorites ----------- Power Light Ion Engine Engine Light Ion Engine Propulsion Hover Unit Leg Aluminum Leg Wheel Compact Wheel Hover Unit Hover Unit Utility Large Storage Unit Device Heat Sink Storage Large Storage Unit Processor Signal Interpreter Weapon EM Pulse Gun Energy Gun EM Pulse Gun Launcher Grenade Launcher Build | -11 -10 -9 ------- Run | Scr Mat Mat Slots Evolved 2 | . . 2 Power . | . . . Propulsion 1 | . . 1 Utility . | . . . Weapon 1 | . . 1 Parts Attached 25 | 6 17 2 Power 3 | 1 2 . Engine 3 | 1 2 . Core . | . . . Reactor . | . . . Propulsion 10 | 2 6 2 Treads . | . . . Leg 3 | 2 1 . Wheel 2 | . 2 . Hover 5 | . 3 2 Flight . | . . . Utility 8 | 1 7 . Device 2 | 1 1 . Storage 5 | . 5 . Processor 1 | . 1 . Hackware . | . . . Protection . | . . . Artifact . | . . . Weapon 4 | 2 2 . Energy Gun 3 | 2 1 . Energy Cannon . | . . . Ballistic Gun . | . . . Ballistic Cannon . | . . . Launcher 1 | . 1 . Special Weapon . | . . . Impact Weapon . | . . . Slashing Weapon . | . . . Piercing Weapon . | . . . Special Melee Weapon . | . . . Unidentified Prototypes . | . . . Parts Lost 8 | . 2 6 Power 1 | . 1 . Propulsion 3 | . . 3 Utility 1 | . . 1 Weapon 3 | . 1 2 Highest Loss Streak 6 | . 2 6 To Critical Strikes . | . . . Average Slot Usage (%) 91 | . 96 65 Engine 9 | . 11 . Leg 3 | . 4 . Wheel 5 | . 5 . Hover 19 | . 17 26 Device 10 | . 10 9 Storage 13 | . 13 11 Processor 2 | . 3 . Energy Gun 22 | . 25 8 Launcher 3 | . 2 9 Naked Turns . | . . . Heaviest Build 49 | 8 49 47 Greatest Support 32 | 20 32 18 Greatest Overweight (x) 7 | . 4 7 Average Overweight (x) 1 | . 1 2 Largest Inventory Capacity 20 | 5 20 20 Average Capacity 13 | 5 14 20 Most Carried 15 | 5 15 12 Average Carried 9 | 2 9 11 Final Capacity 20 | 5 20 20 Final Carried 12 | 5 10 12 Class Distribution -------------------- 89% | Mutant 10% | Scavenger-Mutant Dominant Class ---------------- Mutant | -10/Materials Scavenger-Mutant | -9/Materials Resources | -11 -10 -9 ----------- Run | Scr Mat Mat Matter Collected 630 | 260 370 . Remotely . | . . . Salvage Created 977 | 170 700 107 Parts 81 | 16 55 10 Haulers Intercepted . | . . . Recyclers Shooed 2 | . 2 . Parts Field Recycled . | . . . Retrieved Matter . | . . . Parts Self-Destructed . | . . . Prevented . | . . . Kills | -11 -10 -9 ------- Run | Scr Mat Mat Combat Hostiles Destroyed 14 | 1 9 4 Guns 7 | 1 6 . AOE 7 | . 3 4 Classes Destroyed 7 | 3 4 . Worker 5 | 1 4 . Builder 3 | . 2 1 Tunneler 6 | 4 1 1 Recycler 1 | . 1 . Operator 2 | . 2 . Watcher 3 | . 3 . Grunt 14 | 1 9 4 Best Kill Streak 5 | 3 5 3 Combat Bots Only 3 | 1 3 3 Max Kills in Single Turn 3 | 1 3 2 Gunslinging 1 | . 1 . Exploded 2 | . 2 2 Melee . | . . . Uniques/NPCs Destroyed . | . . . Combat | -11 -10 -9 -------- Run | Scr Mat Mat Damage Taken 1010 | 22 285 703 Core 502 | . 96 406 Absorbed by Shields . | . . . Core Remaining (%) 80 | 100 61 . Volleys Fired 81 | 14 60 7 Largest 2 | 2 2 2 Hottest 105 | 80 105 95 Shots Fired 156 | 28 115 13 Gun 150 | 28 115 7 Cannon . | . . . Launcher 6 | . . 6 Special . | . . . Kinetic . | . . . Thermal 25 | . 18 7 Explosive 6 | . . 6 Electromagnetic 125 | 28 97 . Robot Hit Streak 12 | 5 12 9 Robot Miss Streak 4 | 3 4 1 Penetration Max . | . . . Secondary Targets 3 | . 3 . Max Gunslinging Chain 1 | . 1 . Shots Hit Robots 73 | 15 51 7 Core Hits 44 | 6 27 11 Critical Kills . | . . . Critical Parts Destroyed . | . . . Critical Strikes 1 | . 1 . Corrupt 1 | . 1 . Melee Attacks . | . . . Impact . | . . . Slashing . | . . . Piercing . | . . . Sneak Attacks . | . . . Combat Hostiles . | . . . Follow-up Attacks . | . . . Damage Inflicted 1884 | 219 1199 466 Guns 1027 | 219 747 61 Cannons . | . . . Explosions 857 | . 452 405 Melee . | . . . Ramming . | . . . Kinetic . | . . . Thermal 513 | . 452 61 Explosive 584 | . 179 405 Electromagnetic 787 | 219 568 . Impact . | . . . Slashing . | . . . Piercing . | . . . Highest Corruption 2 | . 2 . Average Corruption 2 | . 2 . Corruption Purged . | . . . Corruption Blocked . | . . . Effects 5 | . 5 . Matter Fused 3 | . 3 . Heat Flow Errors 1 | . 1 . Energy Discharges 1 | . 1 . Overload Shots . | . . . Overflow Damage 5 | . 5 . Projectiles . | . . . Explosions 5 | . 5 . Melee . | . . . Knockbacks . | . . . Impact . | . . . Kinetic . | . . . Secondary . | . . . Self-Inflicted Damage 107 | . 40 67 Shots 4 | . 2 2 Rammed . | . . . Targets Rammed . | . . . Kicked . | . . . Crushed . | . . . Highest Temperature 410 | 108 410 26 Average Temperature 95 | 36 113 18 Received Heat Transfer 516 | 12 144 360 Effects 2 | . 2 . Energy Bleed 2 | . 2 . Siege Activations . | . . . Robots Corrupted . | . . . Combat Hostiles . | . . . Parts Fried 3 | 2 1 . Impact Corruptions . | . . . Robots Melted . | . . . Combat Hostiles . | . . . Parts Melted . | . . . Heat Transferred 1005 | . 857 148 Parts Sabotaged . | . . . Parts Stolen . | . . . Parts Stripped . | . . . Power Chain Reactions 5 | . 5 . Missiles Intercepted . | . . . Alert | -11 -10 -9 ------- Run | Scr Mat Mat Peak Influence 326 | 45 326 274 Initial 101 | . 29 101 Average 165 | 22 191 158 Maximum Alert Level 1 | . 1 1 Low Security (%) 58 | 100 50 57 Level 1 41 | . 49 42 Level 2 . | . . . Level 3 . | . . . Level 4 . | . . . Level 5 . | . . . High Security . | . . . Max Security . | . . . Squads Dispatched 3 | . 2 1 Investigation 2 | . 1 1 Extermination . | . . . Reinforcement 1 | . 1 . Assault . | . . . Garrison . | . . . Intercept . | . . . Searches Triggered . | . . . Construction Impeded . | . . . Haulers Reinforced . | . . . Active Scanning Responses . | . . . Cargo Convoy Interrupts . | . . . Stealth | -11 -10 -9 --------- Run | Scr Mat Mat Distress Signals 2 | . 1 1 Communications Jammed . | . . . Distress Signals . | . . . Times Spotted 23 | 1 15 7 Peak Tracking Total 3 | 1 3 3 Tactical Retreats . | . . . Traps | -11 -10 -9 ------- Run | Scr Mat Mat Traps Triggered 1 | . 1 . Indirectly . | . . . Trap Hack Attempts . | . . . Triggered . | . . . Disarmed . | . . . Reprogrammed . | . . . Reused . | . . . Traps Extracted . | . . . Installed . | . . . Triggered . | . . . Machines | -11 -10 -9 ---------- Run | Scr Mat Mat Machines Disabled 2 | . 2 . Max in Single Turn 1 | . 1 . Machines Sabotaged . | . . . Garrisons Compromised . | . . . Overloaded Fab Kills . | . . . Hacking | -11 -10 -9 --------- Run | Scr Mat Mat Machines Accessed 6 | . 5 1 Terminals 6 | . 5 1 Fabricators . | . . . Repair Stations . | . . . Recycling Units . | . . . Scanalyzers . | . . . Garrison Access . | . . . Total Hacks 20 | . 17 3 Successful 16 | . 15 1 Failed 4 | . 2 2 Catastrophic . | . . . Database Lockouts . | . . . Manual 2 | . 2 . Terminals 20 | . 17 3 Fabricators . | . . . Repair Stations . | . . . Recycling Units . | . . . Scanalyzers . | . . . Garrison Access . | . . . Terminal Hacks 15 | . 14 1 Record 10 | . 9 1 Robot Analysis 1 | . 1 . Alert Level 1 | . 1 . Dispatch Records 1 | . 1 . Zone Layout 2 | . 2 . Fabricator Hacks . | . . . Repair Station Hacks . | . . . Recycling Unit Hacks . | . . . Scanalyzer . | . . . Garrison Access Hacks . | . . . Unauthorized Hacks 1 | . 1 . Terminals 1 | . 1 . Operators 1 | . 1 . Fabricators . | . . . Repair Stations . | . . . Recycling Units . | . . . Scanalyzers . | . . . Garrison Access . | . . . Data Cores Recovered . | . . . Used . | . . . Hacking Detections 6 | . 5 1 Full Trace Events 5 | . 4 1 Feedback Events . | . . . Feedback Blocked . | . . . Robot Schematics Acquired . | . . . Robots Built . | . . . Authchips . | . . . Time . | . . . Total Robot Build Rating . | . . . Part Schematics Acquired . | . . . Parts Built . | . . . Authchips . | . . . Time . | . . . Total Part Build Rating . | . . . Parts Repaired . | . . . Time . | . . . Parts Recycled . | . . . Recycled Matter . | . . . Retrieved Matter . | . . . Retrieved Components . | . . . Parts Scanalyzed . | . . . Part Schematics Acquired . | . . . Parts Damaged . | . . . Bothacking | -11 -10 -9 ------------ Run | Scr Mat Mat Used RIF Installer . | . . . Robots Hacked . | . . . Non-combat . | . . . Combat . | . . . Robot Hacks Applied . | . . . Relay Couplers Released . | . . . Fabnet Peak Effective % . | . . . Robots Rewired . | . . . Allies Hacked . | . . . Hacks Repelled . | . . . Allies | -11 -10 -9 -------- Run | Scr Mat Mat Total Allies . | . . . Largest Group . | . . . Highest-Rated Group . | . . . Highest-Rated Ally . | . . . Total Orders . | . . . Ally Attacks . | . . . Total Damage . | . . . Kills . | . . . Allies Corrupted . | . . . Allies Melted . | . . . Intel | -11 -10 -9 ------- Run | Scr Mat Mat Robot Analysis Total 1 | . 1 . Derelict Logs Recovered . | . . . Drone Launches . | . . . Drone Recoveries . | . . . Exploration | -11 -10 -9 ------------- Run | Scr Mat Mat Turns Passed 1470 | 194 1089 187 Spaces Moved 774 | 124 575 75 Core 21 | 21 . . Treads . | . . . Legs 196 | 103 93 . Wheels 141 | . 141 . Hover 416 | . 341 75 Flight . | . . . Fastest Speed 50 | 50 100 172 Average Speed 147 | 108 150 184 Slowest Speed 480 | 120 296 480 Overloaded Moves . | . . . Propulsion Burnouts . | . . . Robots Hopped . | . . . Cave-ins Triggered . | . . . Exploration Rate (%) 33 | 6 84 10 Regions Visited 2 Branch Regions . Pre-discovered Areas . | . . . Known Exits Taken . | . . . Unknown Exits Taken 2 | 1 1 . Scrap Searched . | . . . Spaces Dug . | . . . Terrain Destroyed 79 | . 46 33 Melee . | . . . Projectile . | . . . AOE 79 | . 46 33 Terrain Rammed . | . . . Walls Destroyed . | . . . Machines Disabled . | . . . Actions | -11 -10 -9 --------- Run | Scr Mat Mat Total 950 | 156 683 111 Wait 26 | 2 . 24 Move 772 | 123 574 75 Hop . | . . . Pick Up 32 | 11 18 3 Fast Attach 2 | . 2 . Attach 10 | 6 3 1 Detach . | . . . Swap 13 | . 12 1 Drop 14 | . 14 . Fire 81 | 14 60 7 Melee . | . . . Ram . | . . . Kick . | . . . Crush . | . . . Escape Stasis . | . . . Rewire . | . . . Trap . | . . . Miscellaneous . | . . . Route ------- -11/Scrapyard -10/Materials (discovered 4 exits: *Mat x2 / [*Min x2]) -9/Materials History --------- Turn | Location | Event 2 | -11/Scrapyard | Met Revision 17 68 | -11/Scrapyard | Discovered new exit (range 8) 195 | -11/Scrapyard | Entered Materials 312 | -10/Materials | Build established: Mutant 377 | -10/Materials | Discovered new exit (range 7) 674 | -10/Materials | Discovered new exit (range 12) 830 | -10/Materials | Discovered new exit (range 15) 1087 | -10/Materials | Discovered new exit (range 15) 1284 | -10/Materials | Entered another Materials area 1284 | -9/Materials | Evolved 2 slots: Propulsion x1, Weapon x1 1458 | -9/Materials | Core integrity fell below 50% 1464 | -9/Materials | Core integrity fell below 20% 1471 | -9/Materials | Destroyed by G-34 Mercenary with Small Laser Last Messages --------------- T-07 Excavator destroyed. G-34 Mercenary destroyed. K-01 Serf collects debris. Hover Unit destroyed. K-01 Serf collects debris. Hover Unit destroyed. K-01 Serf collects debris. Particle Gun destroyed. The unstable cave ceiling collapses. Sml. Laser crushed. Critical hit (Burn: +37). K-01 Serf collects debris. Critical hit (Burn: +37). K-01 Serf collects debris. Grenade Launcher destroyed. Hover Unit destroyed. Heat Sink destroyed. K-01 Serf collects debris. Critical hit (Burn: +37). [Achievement: First Step to Greatness] Map ----- +----------------------------------------------------+ | ?????????????????????????????????????????????????? | | ?????????????????????????????????????????????????? | | ?????????????????????????????????????????????????? | | ?????????????????????????????????????????????????? | | ?????????????????????????????????????????????????? | | ?????????????????????????????????????????????????? | | ######???????????????????????????????????????????? | | #???????????????????????????????????????????? | | #???????????????????????????????????????????? | | #####???????????????????????????????????????? | | # ?????????###+###???????????????????????? | | # ????????# ###+#???????????????????? | | ! # ????????# ????????????????????? | | ! # ????????# ?????????????????????? | | ! # ????????# ??????????????????????? | | #? ???#???? #???????????????????????? | | #?? ? ###### ########?????????????????? | | #??? ??# =# #?????????????????? | | #??###+###?# * % "S #?????????????????? | | ######### #### # *! """ #?????????????????? | | = "" #?????????????????? | | ######### T #?????????????????? | | ????????# """ #?????????????????? | | ????????# ### =""" #?????????????????? | | ????????###+###?## # #[g""" #?????????????????? | | ?????????????????########@g #?????????????????? | | ????????????????????????# """ #?????????????????? | | ????????????????????????# Y""" #?????????????????? | | ????????????????????????# """ +?????????????????? | | ????????????????????????# #?????????????????? | | ????????????????????????## #####?????????????????? | | ??????????????????????????##?????????????????????? | | ?????????????????????????????????????????????????? | | ?????????????????????????????????????????????????? | | ?????????????????????????????????????????????????? | | ?????????????????????????????????????????????????? | | | | | | | | | | | | | | | | | | | | | | | | | | | | | +----------------------------------------------------+ Best States ------------- Heat Dissipation 38 Energy Generation 10 Energy Capacity 250 Matter Stores 300 Matter Capacity 300 Sight Range 16 Terrain Scan Density 10 Evasion (%) 55 Item Schematics ----------------- None Robot Schematics ------------------ None Fabricated ------------ Nothing Alien Tech Used ----------------- None Achievements -------------- Crack Shot First Step to Greatness Librarian One Hack Too Far True Hacker Uninvited Guest Challenges ------------ None Game ------ Seed MicrowarpEnhancedCorpse Manual? 0 Play Time 00:47:50 Cumulative 1.5 hours Start 2022.06.24 @ 18:16:42 End 2022.06.24 @ 19:11:32 Sessions 1 Manual Loads 0 Difficulty Rogue Special Mode None Game No. 1 Rogue 1 Adventurer 0 Explorer 0 Win Type - Total 0 Types 0/0/0/0/0/0/0/0/0 Lore% 1 Gallery% 1 Achievement% 2 Wizard Run 0 Options --------- ASCII 0 Keyboard 0 Movement Mouse Keybinds 0 Fullscreen 1 Font 24/Smallcaps Map View 76x50 Tactical HUD 0 Map Filters NONE Filters NONE Steam 1 RUN: 1617e696-793d-49f9-a590-d81b75a71e32